[Event "Late-Titled-Tuesday-Blitz-May-07-2024"]
[Site "Chess.com"]
[Date "2024.05.07"]
[Round "5"]
[White "VD_coach"]
[Black "MusicCityMaster"]
[Result "0-1"]
[WhiteElo "2586"]
[BlackElo "2469"]
[TimeControl "180+1"]
[EndTime "14:55:45 PDT"]
[Termination "MusicCityMaster won by resignation"]

1. Nf3 {[%clk 0:03:00.9]} 1... Nf6 {[%clk 0:02:59.3]} 2. d4 {[%clk 0:03:01.8]}
2... g6 {[%clk 0:02:58.5]} 3. c4 {[%clk 0:03:00.7]} 3... c5 {[%clk 0:02:58]} 4.
Nc3 {[%clk 0:03:01.6]} 4... cxd4 {[%clk 0:02:57.9]} 5. Nxd4 {[%clk 0:03:02.1]}
5... Nc6 {[%clk 0:02:58.3]} 6. e3 {[%clk 0:02:55.8]} 6... Bg7 {[%clk 0:02:57.7]}
7. Be2 {[%clk 0:02:56.1]} 7... O-O {[%clk 0:02:57.8]} 8. O-O {[%clk 0:02:56]}
8... d6 {[%clk 0:02:57.1]} 9. b3 {[%clk 0:02:55.7]} 9... Bd7 {[%clk 0:02:55.5]}
10. Bb2 {[%clk 0:02:55.9]} 10... Rc8 {[%clk 0:02:54.8]} 11. Rc1 {[%clk
0:02:55.4]} 11... a6 {[%clk 0:02:54.5]} 12. Bf3 {[%clk 0:02:55.4]} 12... Qa5
{[%clk 0:02:53.9]} 13. Qd2 {[%clk 0:02:44.1]} 13... Rfe8 {[%clk 0:02:50]} 14.
Rfd1 {[%clk 0:02:43.5]} 14... Nxd4 {[%clk 0:02:23]} 15. exd4 {[%clk 0:02:42]}
15... b5 {[%clk 0:02:22.4]} 16. Be2 {[%clk 0:02:16]} 16... b4 {[%clk 0:02:10.2]}
17. Nd5 {[%clk 0:01:43.1]} 17... Nxd5 {[%clk 0:02:09.2]} 18. cxd5 {[%clk
0:01:44]} 18... Qxa2 {[%clk 0:01:44.4]} 19. Bc4 {[%clk 0:01:42.4]} 19... Bh6
{[%clk 0:01:30.3]} 20. Qxh6 {[%clk 0:01:35]} 20... Qxb2 {[%clk 0:01:30]} 21. Qe3
{[%clk 0:01:12.4]} 21... a5 {[%clk 0:01:12.5]} 22. Ra1 {[%clk 0:01:07]} 22... a4
{[%clk 0:01:09]} 23. Rdb1 {[%clk 0:00:42.9]} 23... Qc3 {[%clk 0:01:03.8]} 24.
Rc1 {[%clk 0:00:39.3]} 24... Qxe3 {[%clk 0:01:02.5]} 25. fxe3 {[%clk 0:00:40.2]}
25... a3 {[%clk 0:00:57.5]} 26. Kf2 {[%clk 0:00:40.4]} 26... Rc7 {[%clk
0:00:50]} 27. e4 {[%clk 0:00:40.3]} 27... Rec8 {[%clk 0:00:49.6]} 28. Ke3 {[%clk
0:00:40.7]} 28... Bb5 {[%clk 0:00:45.3]} 29. Kd3 {[%clk 0:00:40.1]} 29... Bxc4+
{[%clk 0:00:43.1]} 30. Rxc4 {[%clk 0:00:40.5]} 30... Rxc4 {[%clk 0:00:42.3]} 31.
bxc4 {[%clk 0:00:41.4]} 31... Rb8 {[%clk 0:00:39.1]} 32. Kc2 {[%clk 0:00:23.1]}
32... b3+ {[%clk 0:00:38.7]} 33. Kb1 {[%clk 0:00:23.2]} 33... Ra8 {[%clk
0:00:33.1]} 34. c5 {[%clk 0:00:23.6]} 34... dxc5 {[%clk 0:00:28.8]} 35. dxc5
{[%clk 0:00:24.5]} 35... Kf8 {[%clk 0:00:28.9]} 36. e5 {[%clk 0:00:22.3]} 36...
Ke8 {[%clk 0:00:28.9]} 37. c6 {[%clk 0:00:22.2]} 37... Kd8 {[%clk 0:00:25.4]}
38. d6 {[%clk 0:00:22.2]} 38... exd6 {[%clk 0:00:25.2]} 39. exd6 {[%clk
0:00:23.1]} 39... Ra6 {[%clk 0:00:24.6]} 40. g3 {[%clk 0:00:16.4]} 40... h5
{[%clk 0:00:21.8]} 41. h3 {[%clk 0:00:15.5]} 41... f5 {[%clk 0:00:20]} 42. h4
{[%clk 0:00:15.7]} 42... Kc8 {[%clk 0:00:18.7]} 43. c7 {[%clk 0:00:15.1]} 43...
Kd7 {[%clk 0:00:18.9]} 0-1

[Event "Late-Titled-Tuesday-Blitz-May-07-2024"]
[Site "Chess.com"]
[Date "2024.05.07"]
[Round "5"]
[White "LikeWater"]
[Black "moro182"]
[Result "0-1"]
[WhiteElo "2685"]
[BlackElo "2881"]
[TimeControl "180+1"]
[EndTime "14:55:46 PDT"]
[Termination "moro182 won by checkmate"]

1. e4 {[%clk 0:03:00.9]} 1... g6 {[%clk 0:02:44.8]} 2. d4 {[%clk 0:03:00.1]}
2... Bg7 {[%clk 0:02:45.7]} 3. Nc3 {[%clk 0:02:59.9]} 3... a6 {[%clk 0:02:45.5]}
4. g4 {[%clk 0:02:49.4]} 4... d5 {[%clk 0:02:42.7]} 5. exd5 {[%clk 0:02:36.7]}
5... Nf6 {[%clk 0:02:39]} 6. h3 {[%clk 0:02:27.2]} 6... b5 {[%clk 0:02:36.6]} 7.
Bg2 {[%clk 0:02:24.6]} 7... Bb7 {[%clk 0:02:36.8]} 8. Nf3 {[%clk 0:02:23.3]}
8... h5 {[%clk 0:02:23.8]} 9. g5 {[%clk 0:02:20.6]} 9... Nxd5 {[%clk 0:02:23.3]}
10. O-O {[%clk 0:02:20.4]} 10... Nxc3 {[%clk 0:02:16.1]} 11. bxc3 {[%clk
0:02:20.2]} 11... Nd7 {[%clk 0:02:16.4]} 12. Re1 {[%clk 0:02:16]} 12... O-O
{[%clk 0:02:14.2]} 13. a4 {[%clk 0:02:15.9]} 13... Nb6 {[%clk 0:02:11.1]} 14.
axb5 {[%clk 0:02:11.1]} 14... axb5 {[%clk 0:02:12]} 15. Rb1 {[%clk 0:02:11.3]}
15... Bc6 {[%clk 0:02:04.4]} 16. Ne5 {[%clk 0:02:08.3]} 16... Bxg2 {[%clk
0:02:00.5]} 17. Kxg2 {[%clk 0:02:09.2]} 17... Bxe5 {[%clk 0:01:52.7]} 18. Rxe5
{[%clk 0:02:07.1]} 18... c6 {[%clk 0:01:52]} 19. Qe2 {[%clk 0:02:01.9]} 19... e6
{[%clk 0:01:33.2]} 20. Bf4 {[%clk 0:01:54.2]} 20... Nd5 {[%clk 0:01:31.7]} 21.
Bd2 {[%clk 0:01:52.9]} 21... Ra3 {[%clk 0:01:24.7]} 22. Rb3 {[%clk 0:01:39.8]}
22... Ra1 {[%clk 0:01:19.7]} 23. c4 {[%clk 0:01:37.7]} 23... bxc4 {[%clk
0:01:18.8]} 24. Qxc4 {[%clk 0:01:38.6]} 24... Ne7 {[%clk 0:01:10.6]} 25. Bb4
{[%clk 0:01:25.2]} 25... Nf5 {[%clk 0:01:10.2]} 26. Bxf8 {[%clk 0:01:19.8]}
26... Qxg5+ {[%clk 0:01:05]} 27. Rg3 {[%clk 0:01:12.7]} 27... Nh4+ {[%clk
0:00:36.7]} 28. Kh2 {[%clk 0:01:11.9]} 28... Nf3+ {[%clk 0:00:37.1]} 29. Kg2
{[%clk 0:01:11.4]} 29... Nh4+ {[%clk 0:00:38]} 30. Kh2 {[%clk 0:01:11.6]} 30...
Qc1 {[%clk 0:00:35.7]} 31. Qxc6 {[%clk 0:01:04.2]} 31... Qf1 {[%clk 0:00:30.2]}
32. Rg2 {[%clk 0:00:16.9]} 32... Kxf8 {[%clk 0:00:29.9]} 33. Reg5 {[%clk
0:00:07.2]} 33... Kg7 {[%clk 0:00:14.3]} 34. Qe4 {[%clk 0:00:02.9]} 34... Qh1+
{[%clk 0:00:10.7]} 35. Kg3 {[%clk 0:00:03.5]} 35... Ra3+ {[%clk 0:00:10.3]} 36.
Kxh4 {[%clk 0:00:01.9]} 36... Qxh3# {[%clk 0:00:09.8]} 0-1

[Event "Late-Titled-Tuesday-Blitz-May-07-2024"]
[Site "Chess.com"]
[Date "2024.05.07"]
[Round "5"]
[White "dolynachess"]
[Black "nochewycandy"]
[Result "1/2-1/2"]
[WhiteElo "2537"]
[BlackElo "2779"]
[TimeControl "180+1"]
[EndTime "14:55:46 PDT"]
[Termination "Game drawn by repetition"]

1. d4 {[%clk 0:03:00.9]} 1... g6 {[%clk 0:02:54.9]} 2. c4 {[%clk 0:03:01.3]}
2... Bg7 {[%clk 0:02:55.2]} 3. Nc3 {[%clk 0:03:01.1]} 3... d6 {[%clk 0:02:55.8]}
4. Nf3 {[%clk 0:03:00.7]} 4... Nf6 {[%clk 0:02:53.1]} 5. e4 {[%clk 0:03:00.6]}
5... O-O {[%clk 0:02:53.6]} 6. Be2 {[%clk 0:02:55.3]} 6... Na6 {[%clk
0:02:54.1]} 7. Be3 {[%clk 0:02:55.2]} 7... e5 {[%clk 0:02:54.4]} 8. d5 {[%clk
0:02:55]} 8... Ng4 {[%clk 0:02:54.9]} 9. Bg5 {[%clk 0:02:55.3]} 9... f6 {[%clk
0:02:55.5]} 10. Bh4 {[%clk 0:02:55.7]} 10... Qe8 {[%clk 0:02:53.7]} 11. Nd2
{[%clk 0:02:53.1]} 11... Nh6 {[%clk 0:02:54.1]} 12. f3 {[%clk 0:02:51.7]} 12...
g5 {[%clk 0:02:43]} 13. Bf2 {[%clk 0:02:50.5]} 13... f5 {[%clk 0:02:43.9]} 14.
h3 {[%clk 0:02:49.9]} 14... Kh8 {[%clk 0:02:10.2]} 15. Rb1 {[%clk 0:02:42.3]}
15... c5 {[%clk 0:02:07.1]} 16. a3 {[%clk 0:02:25.4]} 16... g4 {[%clk
0:01:54.9]} 17. hxg4 {[%clk 0:02:24.1]} 17... fxg4 {[%clk 0:01:54.5]} 18. b4
{[%clk 0:02:23.4]} 18... b6 {[%clk 0:01:53.8]} 19. Nb5 {[%clk 0:02:18.9]} 19...
Qe7 {[%clk 0:01:41.6]} 20. fxg4 {[%clk 0:01:57.1]} 20... Rxf2 {[%clk 0:01:36.9]}
21. Kxf2 {[%clk 0:01:56.4]} 21... Bd7 {[%clk 0:01:33.4]} 22. Bf3 {[%clk
0:01:38.6]} 22... Rf8 {[%clk 0:01:31.4]} 23. Ke1 {[%clk 0:01:21.4]} 23... Qf6
{[%clk 0:01:00.2]} 24. Qa4 {[%clk 0:01:10.3]} 24... Nc7 {[%clk 0:00:51.3]} 25.
Qxa7 {[%clk 0:01:09.3]} 25... Nxb5 {[%clk 0:00:51.7]} 26. Qxd7 {[%clk
0:01:02.1]} 26... Nxa3 {[%clk 0:00:51.1]} 27. Rc1 {[%clk 0:00:51.4]} 27... Qf4
{[%clk 0:00:38.5]} 28. bxc5 {[%clk 0:00:37.8]} 28... Qe3+ {[%clk 0:00:36.9]} 29.
Kd1 {[%clk 0:00:37]} 29... bxc5 {[%clk 0:00:19.2]} 30. Qxd6 {[%clk 0:00:28.2]}
30... Nxg4 {[%clk 0:00:07.9]} 31. Bxg4 {[%clk 0:00:17.7]} 31... Rf2 {[%clk
0:00:08.8]} 32. Qb8+ {[%clk 0:00:16.7]} 32... Bf8 {[%clk 0:00:09.4]} 33. Qxe5+
{[%clk 0:00:16.3]} 33... Bg7 {[%clk 0:00:09]} 34. Qb8+ {[%clk 0:00:12.3]} 34...
Bf8 {[%clk 0:00:09.4]} 35. Qb2+ {[%clk 0:00:08.4]} 35... Bg7 {[%clk 0:00:10]}
36. Qb8+ {[%clk 0:00:08.4]} 36... Bf8 {[%clk 0:00:10.4]} 37. Qe5+ {[%clk
0:00:07.5]} 37... Bg7 {[%clk 0:00:10.8]} 38. Qb8+ {[%clk 0:00:06.7]} 1/2-1/2

[Event "Late-Titled-Tuesday-Blitz-May-07-2024"]
[Site "Chess.com"]
[Date "2024.05.07"]
[Round "5"]
[White "Abund"]
[Black "Durarbayli"]
[Result "1-0"]
[WhiteElo "2780"]
[BlackElo "2939"]
[TimeControl "180+1"]
[EndTime "14:55:47 PDT"]
[Termination "Abund won by resignation"]

1. e4 {[%clk 0:03:00.9]} 1... e6 {[%clk 0:02:59.1]} 2. d4 {[%clk 0:03:00.6]}
2... d5 {[%clk 0:02:59.7]} 3. Nd2 {[%clk 0:03:01.4]} 3... c5 {[%clk 0:02:59]} 4.
Ngf3 {[%clk 0:03:01.5]} 4... cxd4 {[%clk 0:02:54]} 5. Nxd4 {[%clk 0:03:02.4]}
5... Nc6 {[%clk 0:02:54.2]} 6. Bb5 {[%clk 0:02:56.1]} 6... Bd7 {[%clk
0:02:54.2]} 7. Nxc6 {[%clk 0:02:54.1]} 7... bxc6 {[%clk 0:02:55.1]} 8. Bd3
{[%clk 0:02:54.5]} 8... Qc7 {[%clk 0:02:48]} 9. Qe2 {[%clk 0:02:48.7]} 9... Bd6
{[%clk 0:02:44.6]} 10. Nf3 {[%clk 0:02:44.1]} 10... e5 {[%clk 0:02:41.6]} 11.
exd5 {[%clk 0:02:38.2]} 11... cxd5 {[%clk 0:02:41.6]} 12. Nxe5 {[%clk
0:02:36.1]} 12... Bxe5 {[%clk 0:02:37.7]} 13. f4 {[%clk 0:02:31.1]} 13... f6
{[%clk 0:02:02.1]} 14. O-O {[%clk 0:02:14.7]} 14... Ne7 {[%clk 0:01:53.7]} 15.
fxe5 {[%clk 0:02:14]} 15... Qxe5 {[%clk 0:01:53.5]} 16. Qf2 {[%clk 0:02:06.2]}
16... Kf7 {[%clk 0:01:33.4]} 17. Bf4 {[%clk 0:01:50.5]} 17... Qxb2 {[%clk
0:01:10.6]} 18. Rab1 {[%clk 0:01:47.9]} 18... Qa3 {[%clk 0:01:10.7]} 19. Be5
{[%clk 0:01:27.2]} 19... Rhf8 {[%clk 0:00:57.6]} 20. Rb7 {[%clk 0:01:13.4]}
20... Bc6 {[%clk 0:00:36.1]} 21. Rb3 {[%clk 0:01:00.2]} 21... Qa4 {[%clk
0:00:32.2]} 22. Bxh7 {[%clk 0:00:53.9]} 22... Rh8 {[%clk 0:00:24.5]} 23. Bxf6
{[%clk 0:00:35.4]} 23... Rxh7 {[%clk 0:00:24.3]} 24. Bxe7+ {[%clk 0:00:24.9]}
24... Kxe7 {[%clk 0:00:25.2]} 25. Qf7+ {[%clk 0:00:24.8]} 25... Kd6 {[%clk
0:00:25.7]} 26. Qg6+ {[%clk 0:00:23]} 26... Kc7 {[%clk 0:00:26.1]} 27. Qxh7
{[%clk 0:00:18.6]} 27... Qd4+ {[%clk 0:00:19]} 28. Kh1 {[%clk 0:00:18.9]} 28...
Rf8 {[%clk 0:00:18.8]} 29. Rbb1 {[%clk 0:00:15.9]} 29... Rxf1+ {[%clk
0:00:09.8]} 30. Rxf1 {[%clk 0:00:16.8]} 30... Qg4 {[%clk 0:00:10.3]} 31. h3
{[%clk 0:00:15.1]} 31... Qg5 {[%clk 0:00:07.2]} 32. Rf7+ {[%clk 0:00:12.6]}
32... Kb6 {[%clk 0:00:07]} 33. Qxg7 {[%clk 0:00:12.4]} 33... Qc1+ {[%clk
0:00:06.4]} 34. Kh2 {[%clk 0:00:12.9]} 34... Qxc2 {[%clk 0:00:07.1]} 35. Qd4+
{[%clk 0:00:13]} 35... Ka6 {[%clk 0:00:07.6]} 36. Rxa7+ {[%clk 0:00:12.2]} 36...
Kb5 {[%clk 0:00:07.5]} 37. a4+ {[%clk 0:00:12.9]} 1-0

[Event "Late-Titled-Tuesday-Blitz-May-07-2024"]
[Site "Chess.com"]
[Date "2024.05.07"]
[Round "5"]
[White "szachmistrz2500"]
[Black "Mikhail_Golubev"]
[Result "0-1"]
[WhiteElo "2466"]
[BlackElo "2611"]
[TimeControl "180+1"]
[EndTime "14:55:49 PDT"]
[Termination "Mikhail_Golubev won on time"]

1. d4 {[%clk 0:03:00]} 1... Nf6 {[%clk 0:02:59.3]} 2. Nf3 {[%clk 0:02:59.1]}
2... d6 {[%clk 0:02:59.1]} 3. c4 {[%clk 0:02:59.1]} 3... g6 {[%clk 0:02:58.5]}
4. Nc3 {[%clk 0:02:58.8]} 4... Bg7 {[%clk 0:02:58.6]} 5. e4 {[%clk 0:02:59.3]}
5... O-O {[%clk 0:02:58]} 6. Be2 {[%clk 0:02:59.8]} 6... e5 {[%clk 0:02:57.5]}
7. O-O {[%clk 0:03:00.1]} 7... h6 {[%clk 0:02:56.8]} 8. Re1 {[%clk 0:02:36.1]}
8... Nbd7 {[%clk 0:02:55]} 9. Bf1 {[%clk 0:02:35.1]} 9... Re8 {[%clk 0:02:44.9]}
10. b3 {[%clk 0:02:32.4]} 10... exd4 {[%clk 0:01:42]} 11. Nxd4 {[%clk
0:02:30.1]} 11... Ng4 {[%clk 0:01:42]} 12. Qxg4 {[%clk 0:02:18.2]} 12... Bxd4
{[%clk 0:01:39.8]} 13. Bd2 {[%clk 0:02:12.6]} 13... Qf6 {[%clk 0:00:43.8]} 14.
Qg3 {[%clk 0:02:12.1]} 14... c6 {[%clk 0:00:44]} 15. Rac1 {[%clk 0:02:09.4]}
15... g5 {[%clk 0:00:37.2]} 16. h4 {[%clk 0:01:50.9]} 16... Kf8 {[%clk
0:00:22.8]} 17. hxg5 {[%clk 0:01:50]} 17... hxg5 {[%clk 0:00:23.7]} 18. Ne2
{[%clk 0:01:34.2]} 18... Bb6 {[%clk 0:00:23.6]} 19. Bb4 {[%clk 0:01:23]} 19...
Ne5 {[%clk 0:00:18.7]} 20. c5 {[%clk 0:01:14.2]} 20... Bxc5 {[%clk 0:00:18.6]}
21. Rxc5 {[%clk 0:00:48.6]} 21... dxc5 {[%clk 0:00:19.5]} 22. Bxc5+ {[%clk
0:00:48.8]} 22... Kg8 {[%clk 0:00:17.3]} 23. f4 {[%clk 0:00:49]} 23... Ng6
{[%clk 0:00:12]} 24. f5 {[%clk 0:00:38.2]} 24... Qe5 {[%clk 0:00:12.2]} 25. Qf2
{[%clk 0:00:20.9]} 25... Nf4 {[%clk 0:00:12.3]} 26. Nxf4 {[%clk 0:00:13.6]}
26... Qxf4 {[%clk 0:00:13.2]} 27. Qxf4 {[%clk 0:00:09.4]} 27... gxf4 {[%clk
0:00:12.6]} 28. Kf2 {[%clk 0:00:10]} 28... b6 {[%clk 0:00:11.6]} 29. Bd6 {[%clk
0:00:10.2]} 29... f6 {[%clk 0:00:10.1]} 30. Bc4+ {[%clk 0:00:08.7]} 30... Kg7
{[%clk 0:00:09.6]} 31. e5 {[%clk 0:00:08]} 31... Bxf5 {[%clk 0:00:09]} 32. e6
{[%clk 0:00:05.2]} 32... b5 {[%clk 0:00:08.1]} 33. Be2 {[%clk 0:00:03]} 33...
Rxe6 {[%clk 0:00:07.7]} 34. Bxf4 {[%clk 0:00:03.6]} 34... Rae8 {[%clk
0:00:06.9]} 0-1

[Event "Late-Titled-Tuesday-Blitz-May-07-2024"]
[Site "Chess.com"]
[Date "2024.05.07"]
[Round "5"]
[White "Thjop"]
[Black "KorolDimitriy75"]
[Result "1-0"]
[WhiteElo "2606"]
[BlackElo "2392"]
[TimeControl "180+1"]
[EndTime "14:55:49 PDT"]
[Termination "Thjop won on time"]

1. e4 {[%clk 0:03:00.9]} 1... c5 {[%clk 0:03:00.1]} 2. Nf3 {[%clk 0:03:00.6]}
2... d6 {[%clk 0:03:00.5]} 3. g3 {[%clk 0:02:59.2]} 3... g6 {[%clk 0:03:00.3]}
4. Bg2 {[%clk 0:02:59.6]} 4... Bg7 {[%clk 0:03:00.9]} 5. O-O {[%clk 0:03:00.2]}
5... Nc6 {[%clk 0:03:01.7]} 6. d3 {[%clk 0:03:00.7]} 6... e5 {[%clk 0:03:02.1]}
7. Nc3 {[%clk 0:03:00.3]} 7... Nge7 {[%clk 0:03:02.7]} 8. a4 {[%clk 0:03:00.9]}
8... O-O {[%clk 0:03:03.6]} 9. Nd2 {[%clk 0:03:01.3]} 9... h6 {[%clk 0:03:03.7]}
10. Nc4 {[%clk 0:03:01.8]} 10... f5 {[%clk 0:03:02.9]} 11. Nd5 {[%clk
0:03:02.3]} 11... Nxd5 {[%clk 0:02:58.9]} 12. exd5 {[%clk 0:03:02.4]} 12... Ne7
{[%clk 0:02:52.8]} 13. f4 {[%clk 0:03:02]} 13... Kh7 {[%clk 0:02:44.5]} 14. c3
{[%clk 0:03:01.7]} 14... Rb8 {[%clk 0:02:39.1]} 15. Be3 {[%clk 0:02:51.5]} 15...
b6 {[%clk 0:02:37.7]} 16. Bd2 {[%clk 0:02:26.4]} 16... Bb7 {[%clk 0:02:36.6]}
17. Ne3 {[%clk 0:02:12.7]} 17... exf4 {[%clk 0:02:24]} 18. gxf4 {[%clk
0:02:11.5]} 18... Qe8 {[%clk 0:02:19.2]} 19. a5 {[%clk 0:02:09.1]} 19... b5
{[%clk 0:02:13.2]} 20. a6 {[%clk 0:02:09.4]} 20... Ba8 {[%clk 0:02:13]} 21. Qf3
{[%clk 0:02:08.3]} 21... Qf7 {[%clk 0:02:09.6]} 22. Rab1 {[%clk 0:01:50.2]}
22... Rb6 {[%clk 0:01:54]} 23. Ra1 {[%clk 0:01:49.6]} 23... b4 {[%clk
0:01:21.1]} 24. Ra2 {[%clk 0:01:43.9]} 24... bxc3 {[%clk 0:01:15.9]} 25. bxc3
{[%clk 0:01:44.8]} 25... Rfb8 {[%clk 0:01:15.7]} 26. c4 {[%clk 0:01:40.4]} 26...
Rb2 {[%clk 0:01:10.7]} 27. Rxb2 {[%clk 0:01:40.3]} 27... Rxb2 {[%clk 0:01:11.6]}
28. Qe2 {[%clk 0:01:04.8]} 28... Bc3 {[%clk 0:00:57.6]} 29. Rd1 {[%clk
0:01:03.4]} 29... Ng8 {[%clk 0:00:30.3]} 30. Qe1 {[%clk 0:01:00]} 30... Rxd2
{[%clk 0:00:17.8]} 31. Rxd2 {[%clk 0:01:00.9]} 31... Qf6 {[%clk 0:00:15.2]} 32.
Qc1 {[%clk 0:00:53.2]} 32... Bxd2 {[%clk 0:00:13]} 33. Qxd2 {[%clk 0:00:54.1]}
33... Qd4 {[%clk 0:00:13.2]} 34. Qf2 {[%clk 0:00:45.7]} 34... Nf6 {[%clk
0:00:11.3]} 35. Bf1 {[%clk 0:00:46.6]} 35... Qa1 {[%clk 0:00:09.8]} 36. Qh4
{[%clk 0:00:42.3]} 36... Kg7 {[%clk 0:00:09.3]} 37. Qg3 {[%clk 0:00:42.5]} 37...
Qxa6 {[%clk 0:00:09.1]} 38. Nxf5+ {[%clk 0:00:42.4]} 38... Kh7 {[%clk
0:00:07.6]} 39. Qh4 {[%clk 0:00:41.2]} 39... gxf5 {[%clk 0:00:04.6]} 40. Qxf6
{[%clk 0:00:41.4]} 40... Qb7 {[%clk 0:00:02.8]} 41. Qxf5+ {[%clk 0:00:32.4]}
41... Kh8 {[%clk 0:00:02.5]} 42. Kf2 {[%clk 0:00:24.4]} 1-0

[Event "Late-Titled-Tuesday-Blitz-May-07-2024"]
[Site "Chess.com"]
[Date "2024.05.07"]
[Round "5"]
[White "KuzubovYuriy"]
[Black "BardArtem"]
[Result "1-0"]
[WhiteElo "2956"]
[BlackElo "2782"]
[TimeControl "180+1"]
[EndTime "14:55:50 PDT"]
[Termination "KuzubovYuriy won on time"]

1. d4 {[%clk 0:03:00.9]} 1... d5 {[%clk 0:02:57.9]} 2. c4 {[%clk 0:03:01.1]}
2... c6 {[%clk 0:02:58.4]} 3. Nf3 {[%clk 0:03:01.2]} 3... Nf6 {[%clk 0:02:58.4]}
4. Nc3 {[%clk 0:03:01.2]} 4... dxc4 {[%clk 0:02:55.2]} 5. a4 {[%clk 0:03:01.3]}
5... e6 {[%clk 0:02:55.1]} 6. e3 {[%clk 0:02:57.9]} 6... c5 {[%clk 0:02:55.5]}
7. Bxc4 {[%clk 0:02:57.6]} 7... Nc6 {[%clk 0:02:56.2]} 8. O-O {[%clk 0:02:54.6]}
8... cxd4 {[%clk 0:02:56.2]} 9. Nxd4 {[%clk 0:02:53]} 9... Be7 {[%clk
0:02:56.6]} 10. Nxc6 {[%clk 0:02:41.1]} 10... bxc6 {[%clk 0:02:57.5]} 11. Qxd8+
{[%clk 0:02:39.9]} 11... Bxd8 {[%clk 0:02:58.4]} 12. b3 {[%clk 0:02:38.6]} 12...
Nd5 {[%clk 0:02:55.5]} 13. Ne4 {[%clk 0:02:30.1]} 13... Be7 {[%clk 0:02:53.5]}
14. Ba3 {[%clk 0:02:26.7]} 14... a5 {[%clk 0:02:52.8]} 15. Nd6+ {[%clk
0:02:16.3]} 15... Bxd6 {[%clk 0:02:44.5]} 16. Bxd6 {[%clk 0:02:17.2]} 16... Ba6
{[%clk 0:02:45.3]} 17. Rfc1 {[%clk 0:02:06.5]} 17... Bxc4 {[%clk 0:02:44.1]} 18.
bxc4 {[%clk 0:02:06.2]} 18... Nb4 {[%clk 0:02:31.9]} 19. Rab1 {[%clk 0:01:59.1]}
19... c5 {[%clk 0:02:30.8]} 20. e4 {[%clk 0:01:41.5]} 20... f6 {[%clk
0:02:11.5]} 21. Rd1 {[%clk 0:01:32.4]} 21... Rc8 {[%clk 0:02:10.3]} 22. e5
{[%clk 0:01:31.1]} 22... Kf7 {[%clk 0:02:05]} 23. f4 {[%clk 0:01:29.5]} 23...
Rhd8 {[%clk 0:02:04.2]} 24. Kf2 {[%clk 0:01:19]} 24... fxe5 {[%clk 0:01:57.5]}
25. fxe5 {[%clk 0:01:18.2]} 25... Rd7 {[%clk 0:01:47.5]} 26. Ke3 {[%clk
0:01:15.3]} 26... h6 {[%clk 0:01:40.1]} 27. Rf1+ {[%clk 0:01:12.3]} 27... Kg6
{[%clk 0:01:40.1]} 28. Ke4 {[%clk 0:01:01.4]} 28... Rcd8 {[%clk 0:01:28.2]} 29.
Rb3 {[%clk 0:01:00]} 29... Kh7 {[%clk 0:01:13.1]} 30. h4 {[%clk 0:00:59.8]}
30... Rxd6 {[%clk 0:00:46.6]} 31. exd6 {[%clk 0:00:59.4]} 31... Rxd6 {[%clk
0:00:47.5]} 32. Rf7 {[%clk 0:00:49.7]} 32... Rd4+ {[%clk 0:00:44]} 33. Kf3
{[%clk 0:00:41.9]} 33... Rxc4 {[%clk 0:00:39.6]} 34. Kf2 {[%clk 0:00:40.9]}
34... Rg4 {[%clk 0:00:06]} 35. Rg3 {[%clk 0:00:37.9]} 35... Rxg3 {[%clk
0:00:03.8]} 36. Kxg3 {[%clk 0:00:38]} 36... Kg6 {[%clk 0:00:02.8]} 37. Ra7
{[%clk 0:00:36.2]} 37... Nd3 {[%clk 0:00:03.2]} 38. Rxa5 {[%clk 0:00:34.9]}
38... c4 {[%clk 0:00:01.9]} 39. Ra6 {[%clk 0:00:33.8]} 39... Kf5 {[%clk
0:00:01.7]} 40. a5 {[%clk 0:00:33.5]} 40... e5 {[%clk 0:00:01.6]} 41. Rc6 {[%clk
0:00:32.9]} 41... Ke4 {[%clk 0:00:01.5]} 42. Rxc4+ {[%clk 0:00:32.7]} 42... Kd5
{[%clk 0:00:02.1]} 43. Rc8 {[%clk 0:00:32.4]} 43... e4 {[%clk 0:00:01.5]} 44. a6
{[%clk 0:00:31.7]} 44... e3 {[%clk 0:00:02.2]} 45. Kf3 {[%clk 0:00:31.8]} 1-0

[Event "Late-Titled-Tuesday-Blitz-May-07-2024"]
[Site "Chess.com"]
[Date "2024.05.07"]
[Round "5"]
[White "Denmark2015"]
[Black "YouShallNotPass001"]
[Result "0-1"]
[WhiteElo "2584"]
[BlackElo "2469"]
[TimeControl "180+1"]
[EndTime "14:55:51 PDT"]
[Termination "YouShallNotPass001 won by resignation"]

1. d4 {[%clk 0:03:00.9]} 1... Nf6 {[%clk 0:03:00.9]} 2. c4 {[%clk 0:03:00.6]}
2... e6 {[%clk 0:03:01.8]} 3. Nc3 {[%clk 0:03:00.3]} 3... c5 {[%clk 0:03:02.7]}
4. d5 {[%clk 0:03:00.3]} 4... exd5 {[%clk 0:03:03.6]} 5. cxd5 {[%clk 0:03:00.6]}
5... d6 {[%clk 0:03:04.5]} 6. e4 {[%clk 0:03:00.4]} 6... g6 {[%clk 0:03:04.7]}
7. f4 {[%clk 0:03:00.6]} 7... Bg7 {[%clk 0:03:05.1]} 8. Bb5+ {[%clk 0:03:00.1]}
8... Nfd7 {[%clk 0:03:05.2]} 9. a4 {[%clk 0:03:00.3]} 9... O-O {[%clk 0:03:05]}
10. Nf3 {[%clk 0:03:00.1]} 10... Na6 {[%clk 0:03:04.7]} 11. O-O {[%clk
0:02:59.5]} 11... Nc7 {[%clk 0:03:04.6]} 12. Bc4 {[%clk 0:02:52.7]} 12... a6
{[%clk 0:02:53.8]} 13. Re1 {[%clk 0:02:48.8]} 13... Rb8 {[%clk 0:02:52.7]} 14.
e5 {[%clk 0:02:24.7]} 14... b5 {[%clk 0:02:52.4]} 15. axb5 {[%clk 0:02:20.2]}
15... axb5 {[%clk 0:02:37.4]} 16. Bf1 {[%clk 0:02:02.4]} 16... Nb6 {[%clk
0:02:35]} 17. Bxb5 {[%clk 0:01:22.7]} 17... Nxb5 {[%clk 0:02:09.1]} 18. Nxb5
{[%clk 0:01:22.4]} 18... dxe5 {[%clk 0:02:08.9]} 19. Nc3 {[%clk 0:01:06.3]}
19... e4 {[%clk 0:01:43]} 20. Nxe4 {[%clk 0:00:51.5]} 20... Qxd5 {[%clk
0:01:39.5]} 21. Qxd5 {[%clk 0:00:35]} 21... Nxd5 {[%clk 0:01:40.4]} 22. Nxc5
{[%clk 0:00:25.9]} 22... Bxb2 {[%clk 0:01:32.5]} 23. Bxb2 {[%clk 0:00:23.5]}
23... Rxb2 {[%clk 0:01:33.4]} 24. Nd3 {[%clk 0:00:22.3]} 24... Rb3 {[%clk
0:01:30.3]} 25. Nc5 {[%clk 0:00:19.9]} 25... Rc3 {[%clk 0:01:28.2]} 26. Ne4
{[%clk 0:00:20.2]} 26... Rc4 {[%clk 0:01:27.9]} 27. g3 {[%clk 0:00:19.8]} 27...
Bf5 {[%clk 0:01:22.6]} 28. Nd6 {[%clk 0:00:19.2]} 28... Rc3 {[%clk 0:01:15.6]}
29. Rad1 {[%clk 0:00:16.4]} 29... Bc2 {[%clk 0:01:01.9]} 30. Rxd5 {[%clk
0:00:15.8]} 30... Rxf3 {[%clk 0:01:01.9]} 31. Rd2 {[%clk 0:00:14.8]} 31... Ba4
{[%clk 0:00:59.2]} 32. Re7 {[%clk 0:00:14.6]} 32... Rc3 {[%clk 0:00:53.1]} 33.
Ne4 {[%clk 0:00:14.6]} 33... Rc1+ {[%clk 0:00:49.4]} 34. Kf2 {[%clk 0:00:14.7]}
34... Bc6 {[%clk 0:00:47.5]} 35. Ng5 {[%clk 0:00:14.3]} 35... Rh1 {[%clk
0:00:44.7]} 36. Nf3 {[%clk 0:00:14.3]} 36... Rb8 {[%clk 0:00:40.8]} 37. Rc7
{[%clk 0:00:13.7]} 37... Rb6 {[%clk 0:00:31.9]} 38. Rc2 {[%clk 0:00:13.1]} 38...
Be4 {[%clk 0:00:26]} 39. h4 {[%clk 0:00:12.4]} 39... Bxc2 {[%clk 0:00:25.5]} 40.
Rxc2 {[%clk 0:00:11.5]} 40... Rhb1 {[%clk 0:00:25.5]} 41. Rc8+ {[%clk
0:00:08.3]} 41... Kg7 {[%clk 0:00:25.7]} 42. Ne5 {[%clk 0:00:08.7]} 42... R1b2+
{[%clk 0:00:25.4]} 43. Ke3 {[%clk 0:00:09.3]} 43... R6b3+ {[%clk 0:00:24.9]} 44.
Nd3 {[%clk 0:00:09.4]} 44... Rg2 {[%clk 0:00:23.1]} 45. Kf3 {[%clk 0:00:07.6]}
45... Rd2 {[%clk 0:00:22.8]} 0-1